[Event "Portuguese-ch U14-20 2022"]
[Site "Fatima"]
[Date "2022.04.12"]
[Round "5.27"]
[White "Korotkyi, Daniyil"]
[Black "Gaspar, Bernardo"]
[Result "1/2-1/2"]
[ECO "C68"]
[WhiteElo "1726"]
[BlackElo "1365"]
[Annotator "NA RC"]
[PlyCount "55"]
[EventDate "2022.04.10"]
[EventType "swiss"]
[EventCountry "POR"]
[SourceTitle "playchess.com"]
[Source "ChessBase"]
[SourceQuality "1"]
[TimeControl "5400+30"]

1. e4 {[%emt 0:03:03]} e5 {[%emt 0:00:08]} 2. Nf3 {[%emt 0:00:18]} Nc6 {[%emt 0:00:13]} 3. Bb5 {[%emt 0:00:24]} a6 {[%emt 0:00:16]} 4. Bxc6 {[%emt 0:00:19]} dxc6 {[%emt 0:00:14]} 5. O-O {[%emt 0:00:38]} Bd6 {[%emt 0:01:14]} 6. h3 {[%emt 0:00:55]} Be6 {[%emt 0:02:46]} 7. Nc3 {[%emt 0:01:55]} Qd7 {[%emt 0:05:21]} 8. Ng5 {[%emt 0:04:15]} O-O-O {[%emt 0:10:22]} 9. Nxe6 {[%emt 0:00:25]} Qxe6 {[%emt 0:00:18]} 10. d3 {[%emt 0:00:30]} Ne7 {[%emt 0:01:00]} 11. Qe2 {[%emt 0:02:30]} f6 {[%emt 0:01:01]} 12. Be3 {[%emt 0:00:38]} g5 {[%emt 0:05:13]} 13. Kh2 h5 {[%emt 0:06:42]} 14. g3 {[%emt 0:12:24]} Rdg8 {[%emt 0:11:34]} 15. a3 Ng6 {[%emt 0:13:46]} 16. b4 {[%emt 0:13:26]} Rg7 {[%emt 0:05:48]} 17. Rg1 {[%emt 0:02:54]} Nf4 {[%emt 0:16:36]} 18. Qf1 {[%emt 0:06:52]} g4 {[%emt 0:09:11]} 19. h4 {[%emt 0:04:10]} Nh3 {[%emt 0:00:55]} 20. Rh1 {[%emt 0:02:40]} Rgh7 {[%emt 0:01:01]} 21. Ne2 {[%emt 0:03:19]} f5 {[%emt 0:02:38]} 22. Ng1 {[%emt 0:05:12]} Nxg1 {[%emt 0:00:58]} 23. Rxg1 {[%emt 0:00:23]} f4 {[%emt 0:00:35]} 24. Bd2 {[%emt 0:01:06]} fxg3+ {[%emt 0:00:20]} 25. fxg3 {[%emt 0:00:21]} Rf7 {[%emt 0:00:31]} 26. Qe2 {[%emt 0:00:44]} Rhf8 {[%emt 0:00:28]} 27. Rgf1 {[%emt 0:01:34]} Rf3 {[%emt 0:00:53]} 28. Kg2 {[%emt 0:04:25]} 1/2-1/2

[Event "Portuguese-ch U14-20 2022"]
[Site "Fatima"]
[Date "2022.04.12"]
[Round "5.28"]
[White "Veleirinho, Tomas Carvalho"]
[Black "Azevedo Junior, Joao Nunes"]
[Result "1-0"]
[ECO "C06"]
[WhiteElo "1641"]
[BlackElo "1831"]
[Annotator "NA RC"]
[PlyCount "165"]
[EventDate "2022.04.10"]
[EventType "swiss"]
[EventCountry "POR"]
[SourceTitle "playchess.com"]
[Source "ChessBase"]
[SourceQuality "1"]
[TimeControl "5400+30"]

1. e4 {[%emt 0:03:27]} e6 {[%emt 0:00:03]} 2. d4 {[%emt 0:00:23]} d5 {[%emt 0:00:07]} 3. Nd2 {[%emt 0:00:47]} Nf6 {[%emt 0:00:13]} 4. e5 {[%emt 0:00:58]} Nfd7 {[%emt 0:00:07]} 5. Bd3 {[%emt 0:01:09]} c5 {[%emt 0:00:10]} 6. c3 {[%emt 0:00:37]} Nc6 {[%emt 0:00:11]} 7. Ne2 {[%emt 0:00:56]} cxd4 {[%emt 0:00:22]} 8. cxd4 {[%emt 0:00:32]} f6 {[%emt 0:00:16]} 9. exf6 {[%emt 0:00:51]} Nxf6 {[%emt 0:00:08]} 10. O-O {[%emt 0:01:03]} Bd6 {[%emt 0:00:09]} 11. Nf3 {[%emt 0:01:17]} O-O {[%emt 0:00:12]} 12. h3 {[%emt 0:05:32]} e5 {[%emt 0:03:17]} 13. dxe5 {[%emt 0:01:05]} Nxe5 {[%emt 0:00:10]} 14. Nxe5 {[%emt 0:06:40]} Bxe5 {[%emt 0:00:04]} 15. Rb1 {[%emt 0:07:15]} Be6 {[%emt 0:03:23]} 16. Be3 {[%emt 0:00:39]} Kh8 {[%emt 0:01:44]} 17. Nd4 {[%emt 0:01:04]} Bg8 {[%emt 0:08:36]} 18. Nf3 {[%emt 0:21:57]} Qd6 {[%emt 0:07:09]} 19. Bd4 {[%emt 0:05:58]} ({White should play} 19. Nxe5 $16 Qxe5 20. Bc5) 19... Nd7 {[%emt 0:04:22]} 20. Bxe5 {[%emt 0:11:03]} Nxe5 {[%emt 0:00:30]} 21. Nxe5 {[%emt 0:00:13]} Qxe5 {[%emt 0:00:04]} 22. Qe2 {[%emt 0:03:37]} Qd6 {[%emt 0:12:20]} 23. Bc2 {[%emt 0:03:09]} Rac8 {[%emt 0:05:37]} 24. Qd3 {[%emt 0:02:30]} Qf6 {[%emt 0:05:43]} 25. Bb3 {[%emt 0:03:46]} h6 {[%emt 0:02:55]} 26. Bc2 {[%emt 0:02:48]} Rc6 {[%emt 0:00:44]} 27. f3 {[%emt 0:01:41]} Rfc8 {[%emt 0:00:50]} 28. Rf2 {[%emt 0:00:52]} Qd8 {[%emt 0:01:57]} 29. Re1 {[%emt 0:03:30]} Qb6 {[%emt 0:00:33]} 30. Bb3 {[%emt 0:02:44]} Re6 {[%emt 0:10:38]} 31. Rd1 {[%emt 0:02:43]} Re3 {[%emt 0:05:57]} 32. Qd2 {[%emt 0:02:32]} Rd8 {[%emt 0:00:13]} 33. Kh2 {[%emt 0:00:55]} Qd6+ {[%emt 0:00:50]} 34. g3 {[%emt 0:01:51]} Re5 {[%emt 0:00:16]} 35. Re2 {[%emt 0:00:47]} Rg5 {[%emt 0:01:05]} 36. f4 {[%emt 0:00:13]} Rf5 {[%emt 0:00:02]} 37. Bc2 {[%emt 0:00:34]} Rf7 {[%emt 0:00:11]} 38. Qd4 {[%emt 0:00:34]} b6 {[%emt 0:00:20]} 39. Rde1 {[%emt 0:00:38]} Rf6 {[%emt 0:00:47]} 40. Qd3 {[%emt 0:00:14]} Qc6 {[%emt 0:00:28]} 41. Re7 {[%emt 0:00:47]} Rc8 {[%emt 0:02:38]} 42. R1e2 {[%emt 0:00:28]} a5 {[%emt 0:02:25]} 43. Qd4 {[%emt 0:00:27]} Qc5 {[%emt 0:00:53]} (43... Qc4 $11 {was preferrable.} 44. Qd1 Qb4) 44. Qxc5 {[%emt 0:00:56]} (44. Qe5 $1 $14) 44... Rxc5 {[%emt 0:00:18]} 45. Bd3 {[%emt 0:00:13]} Rcc6 {[%emt 0:00:48]} 46. a3 {[%emt 0:00:14]} Rfe6 {[%emt 0:00:20]} (46... g6 $16) 47. R7xe6 {[%emt 0:00:11]} Rxe6 {[%emt 0:00:03]} (47... Bxe6 $16 48. g4 Kg8) 48. Rxe6 {[%emt 0:00:16]} Bxe6 {[%emt 0:00:02]} 49. f5 {[%emt 0:01:01]} Bd7 {[%emt 0:00:37]} 50. Kg2 {[%emt 0:00:13]} Kg8 {[%emt 0:00:08]} 51. Kf3 {[%emt 0:00:12]} Kf7 {[%emt 0:00:04]} 52. Kf4 {[%emt 0:00:07]} Kf6 {[%emt 0:00:10]} 53. g4 {[%emt 0:00:13]} Be8 {[%emt 0:00:36]} 54. h4 {[%emt 0:00:44]} Bc6 {[%emt 0:01:35]} 55. g5+ {[%emt 0:00:35]} Kf7 {[%emt 0:01:45]} 56. Ke5 {[%emt 0:00:11]} hxg5 {[%emt 0:00:34]} 57. hxg5 {[%emt 0:00:12]} Ke7 {[%emt 0:00:28]} 58. Be2 {[%emt 0:01:53]} Bd7 {[%emt 0:01:20]} 59. f6+ {[%emt 0:00:31]} gxf6+ {[%emt 0:00:19]} 60. gxf6+ {[%emt 0:00:10]} Kf7 {[%emt 0:00:04]} 61. Bh5+ {[%emt 0:00:13]} Kf8 {[%emt 0:00:11]} 62. Kxd5 {[%emt 0:00:32]} Ba4 {[%emt 0:00:06]} 63. Bg6 {[%emt 0:00:36]} Bb5 {[%emt 0:01:22]} 64. Kd6 {[%emt 0:00:12]} Bc4 {[%emt 0:00:11]} 65. Kc6 {[%emt 0:01:04]} b5 {[%emt 0:00:08]} 66. Kb6 {[%emt 0:00:38]} a4 {[%emt 0:00:02]} 67. Kc5 $18 {[%emt 0:00:30]} Be2 {[%emt 0:00:16]} 68. Be4 {[%emt 0:01:06]} Kf7 {[%emt 0:00:32]} 69. Bc6 {[%emt 0:00:12]} Kxf6 {[%emt 0:00:07]} 70. Bxb5 {[%emt 0:00:06]} Bd1 {[%emt 0:00:02]} 71. Kb4 {[%emt 0:00:18]} Ke6 {[%emt 0:00:06]} 72. Bxa4 {[%emt 0:00:12]} Bxa4 {[%emt 0:00:03]} 73. Kxa4 {[%emt 0:00:11]} Kd6 {[%emt 0:00:16]} 74. Kb5 {[%emt 0:00:11]} Kc7 {[%emt 0:00:07]} 75. b4 {[%emt 0:00:38]} Kb7 {[%emt 0:00:04]} 76. a4 {[%emt 0:00:10]} Kb8 {[%emt 0:00:23]} 77. Ka6 {[%emt 0:00:12]} Ka8 {[%emt 0:00:02]} 78. b5 {[%emt 0:00:19]} Kb8 {[%emt 0:00:06]} 79. b6 {[%emt 0:00:14]} Ka8 {[%emt 0:00:04]} 80. b7+ {[%emt 0:00:12]} Kb8 {[%emt 0:00:02]} 81. a5 {[%emt 0:00:07]} Kc7 {[%emt 0:00:12]} 82. Ka7 {[%emt 0:00:06]} Kc6 {[%emt 0:00:13]} 83. b8=Q {[%emt 0:00:11]} 1-0

[Event "Portuguese-ch U14-20 2022"]
[Site "Fatima"]
[Date "2022.04.12"]
[Round "5.29"]
[White "Moldovan, Andre Dragos"]
[Black "Sarabando, Rodrigo Andias"]
[Result "0-1"]
[ECO "D02"]
[WhiteElo "1369"]
[BlackElo "1897"]
[Annotator "NA RC"]
[PlyCount "100"]
[EventDate "2022.04.10"]
[EventType "swiss"]
[EventCountry "POR"]
[SourceTitle "playchess.com"]
[Source "ChessBase"]
[SourceQuality "1"]
[TimeControl "5400+30"]

1. d4 {[%emt 0:00:23]} Nf6 {[%emt 0:00:08]} 2. Bf4 {[%emt 0:01:19]} d5 {[%emt 0:00:05]} 3. Nf3 {[%emt 0:00:07]} c5 {[%emt 0:00:12]} 4. e3 {[%emt 0:00:38]} Nc6 {[%emt 0:00:05]} 5. c3 {[%emt 0:00:41]} Qb6 {[%emt 0:00:05]} 6. Qc1 {[%emt 0:03:36]} Bf5 {[%emt 0:00:12]} 7. Be2 {[%emt 0:03:48]} e6 {[%emt 0:00:41]} 8. h3 {[%emt 0:01:45]} h6 {[%emt 0:00:05]} 9. O-O {[%emt 0:03:32]} Be7 {[%emt 0:00:32]} 10. Nbd2 {[%emt 0:03:51]} O-O {[%emt 0:00:14]} 11. Bd1 {[%emt 0:16:12]} Rac8 {[%emt 0:00:24]} 12. Bc2 {[%emt 0:00:52]} Bxc2 {[%emt 0:00:16]} 13. Qxc2 {[%emt 0:00:11]} cxd4 {[%emt 0:00:05]} 14. exd4 {[%emt 0:01:10]} Nxd4 {[%emt 0:00:30]} 15. Nxd4 {[%emt 0:05:12]} Qxd4 {[%emt 0:00:08]} 16. Be3 {[%emt 0:01:22]} Qe5 {[%emt 0:00:20]} 17. Nf3 {[%emt 0:01:51]} Qc7 {[%emt 0:00:18]} 18. Qe2 {[%emt 0:10:29]} b6 {[%emt 0:01:28]} 19. Rfd1 {[%emt 0:02:40]} Rfd8 {[%emt 0:00:42]} 20. Rac1 {[%emt 0:01:35]} Bc5 {[%emt 0:01:10]} 21. Bd4 {[%emt 0:07:48]} Bxd4 {[%emt 0:00:19]} 22. Nxd4 {[%emt 0:00:18]} a5 {[%emt 0:02:25]} 23. Nb5 {[%emt 0:12:31]} Qc4 {[%emt 0:00:51]} 24. Qxc4 {[%emt 0:00:30]} Rxc4 {[%emt 0:00:02]} 25. Nd4 {[%emt 0:02:59]} Rdc8 {[%emt 0:00:26]} 26. Nf3 {[%emt 0:02:48]} Nd7 {[%emt 0:01:13]} 27. Rd2 {[%emt 0:04:01]} b5 {[%emt 0:00:19]} 28. Rdc2 {[%emt 0:02:16]} b4 {[%emt 0:01:07]} 29. Kf1 {[%emt 0:01:12]} Kf8 {[%emt 0:00:38]} 30. Ke2 {[%emt 0:00:16]} bxc3 {[%emt 0:00:57]} 31. Rxc3 {[%emt 0:00:16]} Rxc3 {[%emt 0:00:13]} 32. Rxc3 {[%emt 0:00:04]} Rxc3 {[%emt 0:00:19]} 33. bxc3 {[%emt 0:00:10]} Ke7 {[%emt 0:00:06]} 34. Ke3 {[%emt 0:00:20]} Kd6 {[%emt 0:00:20]} 35. Nd4 {[%emt 0:01:46]} g6 {[%emt 0:00:32]} 36. Nb3 {[%emt 0:01:50]} a4 {[%emt 0:00:33]} 37. Nd4 {[%emt 0:00:56]} e5 {[%emt 0:02:04]} 38. Nc2 {[%emt 0:01:34]} Kc5 {[%emt 0:01:55]} 39. Kd3 {[%emt 0:01:37]} Nb6 {[%emt 0:02:34]} 40. Ne3 {[%emt 0:01:39]} f5 {[%emt 0:00:32]} 41. f3 {[%emt 0:00:39]} Nc4 {[%emt 0:01:36]} 42. Nc2 {[%emt 0:02:25]} f4 {[%emt 0:01:16]} 43. Ne1 {[%emt 0:01:05]} Ne3 {[%emt 0:00:19]} 44. g3 {[%emt 0:00:54]} g5 {[%emt 0:00:07]} 45. g4 {[%emt 0:00:49]} Kb5 $19 {[%emt 0:00:15]} 46. a3 {[%emt 0:00:15]} Kc5 {[%emt 0:00:05]} 47. Nc2 {[%emt 0:00:24]} Nxc2 {[%emt 0:00:08]} 48. Kxc2 {[%emt 0:00:03]} Kc4 {[%emt 0:00:08]} 49. Kd2 {[%emt 0:01:21]} e4 {[%emt 0:00:13]} 50. fxe4 {[%emt 0:00:18]} dxe4 {[%emt 0:00:02]} 0-1

[Event "Portuguese-ch U14-20 2022"]
[Site "Fatima"]
[Date "2022.04.12"]
[Round "5.30"]
[White "Areal, Maria Beatriz Moura"]
[Black "Pacetti Terra, Nicolas"]
[Result "0-1"]
[ECO "C44"]
[WhiteElo "1343"]
[BlackElo "1756"]
[Annotator "NA RC"]
[PlyCount "131"]
[EventDate "2022.04.10"]
[EventType "swiss"]
[EventCountry "POR"]
[SourceTitle "playchess.com"]
[Source "ChessBase"]
[SourceQuality "1"]
[TimeControl "5400+30"]

1. e4 e5 2. Nf3 Nc6 3. d4 exd4 4. Nxd4 Qf6 5. Nf3 Bc5 6. Nc3 Nge7 7. Nb5 Bb6 8. Be3 Ba5+ 9. c3 a6 10. Nbd4 Bb6 11. Bd3 h6 12. O-O O-O 13. Qd2 d5 14. Nxc6 Qxc6 15. exd5 Nxd5 16. Bxb6 Nxb6 17. Qc2 Qf6 18. Be4 c6 19. Rfe1 Be6 20. Nd4 Rfe8 21. Nxe6 Rxe6 22. Bh7+ Kf8 23. Rxe6 Qxe6 24. Bf5 Qe5 25. Bd3 Rd8 26. Bf1 g6 27. Rd1 Rxd1 28. Qxd1 Ke7 29. Qe2 Ke6 30. Qg4+ Kd6 31. Qb4+ Kc7 32. Qf8 Qe6 33. Qa3 Qd6 34. Qb3 Qd5 35. Qxd5 cxd5 36. b3 Kc6 37. f3 d4 38. c4 Kc5 39. a3 a5 40. Kf2 Nd7 41. Ke1 Ne5 42. Kd2 b6 43. Kc2 f5 44. Kd2 Nc6 45. Kc2 Kd6 46. Kd3 Ke5 47. Be2 h5 48. Bd1 h4 49. Be2 Kf4 50. b4 axb4 51. axb4 Nxb4+ 52. Kxd4 Nc2+ 53. Kd5 Ne3+ 54. Kc6 Nxg2 55. Kxb6 Ke3 56. c5 Kxe2 57. c6 Nf4 58. Kc7 Nd5+ 59. Kd6 Nb6 60. c7 Kxf3 61. Ke5 Kg2 62. Kf4 h3 63. Kg5 Kxh2 64. Kxg6 f4 65. Kf5 f3 66. Ke5 0-1

[Event "Portuguese-ch U14-20 2022"]
[Site "Fatima"]
[Date "2022.04.12"]
[Round "5.31"]
[White "De Medeiros, Sara Soares"]
[Black "Cabete, Manuel"]
[Result "1-0"]
[ECO "D30"]
[WhiteElo "1828"]
[BlackElo "1233"]
[Annotator "NA RC"]
[PlyCount "49"]
[EventDate "2022.04.10"]
[EventType "swiss"]
[EventCountry "POR"]
[SourceTitle "playchess.com"]
[Source "ChessBase"]
[SourceQuality "1"]
[TimeControl "5400+30"]

1. d4 {[%emt 0:00:25]} Nf6 {[%emt 0:00:05]} 2. c4 {[%emt 0:00:26]} e6 {[%emt 0:00:05]} 3. Nf3 {[%emt 0:00:20]} d5 {[%emt 0:00:12]} 4. Bg5 {[%emt 0:00:17]} Be7 {[%emt 0:00:56]} 5. Nc3 {[%emt 0:00:19]} O-O {[%emt 0:00:39]} 6. cxd5 {[%emt 0:00:16]} exd5 {[%emt 0:01:12]} 7. e3 {[%emt 0:02:40]} Bf5 {[%emt 0:02:11]} 8. Qb3 {[%emt 0:01:06]} Nc6 {[%emt 0:03:57]} 9. Bxf6 {[%emt 0:01:41]} Bxf6 {[%emt 0:00:28]} 10. Nxd5 {[%emt 0:00:08]} Be6 {[%emt 0:02:41]} 11. Nxf6+ {[%emt 0:01:30]} Qxf6 {[%emt 0:00:06]} 12. Qc3 {[%emt 0:02:10]} Bd5 {[%emt 0:01:49]} 13. Be2 {[%emt 0:00:30]} Rfe8 {[%emt 0:01:59]} 14. O-O {[%emt 0:03:11]} Qg6 {[%emt 0:01:06]} 15. Ne1 {[%emt 0:01:24]} Rad8 {[%emt 0:01:41]} 16. Bf3 {[%emt 0:00:47]} Bxf3 {[%emt 0:06:21]} 17. Nxf3 {[%emt 0:00:02]} Rd5 {[%emt 0:03:07]} 18. Rfd1 {[%emt 0:04:47]} Re4 {[%emt 0:05:08]} 19. Qd3 {[%emt 0:03:09]} Qe6 {[%emt 0:09:41]} 20. Rac1 {[%emt 0:02:54]} Rg4 {[%emt 0:01:09]} 21. a3 {[%emt 0:08:07]} Rxg2+ {[%emt 0:05:38]} 22. Kxg2 {[%emt 0:06:28]} Qg4+ {[%emt 0:00:13]} 23. Kf1 {[%emt 0:00:02]} Qxf3 {[%emt 0:00:12]} 24. e4 {[%emt 0:05:56]} Qh1+ {[%emt 0:04:46]} 25. Ke2 {[%emt 0:00:05]} 1-0

[Event "Portuguese-ch U14-20 2022"]
[Site "Fatima"]
[Date "2022.04.12"]
[Round "5.32"]
[White "Torres Rodero, Francisco"]
[Black "Marques, Afonso Mendes Pereir"]
[Result "1/2-1/2"]
[ECO "A00"]
[WhiteElo "2048"]
[BlackElo "1550"]
[Annotator "RC"]
[PlyCount "87"]
[EventDate "2022.04.10"]
[EventType "swiss"]
[EventCountry "POR"]
[SourceTitle "playchess.com"]
[Source "ChessBase"]
[SourceQuality "1"]
[TimeControl "5400+30"]

1. Nc3 {[%emt 0:00:01]} d5 {[%emt 0:00:12]} 2. e4 {[%emt 0:00:07]} d4 {[%emt 0:00:53]} 3. Nce2 {[%emt 0:00:05]} e5 {[%emt 0:01:12]} 4. Nf3 {[%emt 0:00:10]} Nc6 {[%emt 0:01:10]} 5. Ng3 {[%emt 0:00:43]} Nf6 {[%emt 0:15:48]} 6. a3 {[%emt 0:01:02]} Bd6 {[%emt 0:02:28]} 7. Bc4 {[%emt 0:00:23]} O-O {[%emt 0:00:17]} 8. d3 {[%emt 0:00:14]} h6 {[%emt 0:02:25]} 9. Bd2 {[%emt 0:00:59]} Ne7 {[%emt 0:04:09]} 10. Qc1 {[%emt 0:05:09]} Kh7 {[%emt 0:04:04]} 11. h3 {[%emt 0:11:01]} Nd7 {[%emt 0:03:21]} 12. Nh2 {[%emt 0:06:58]} Nf6 {[%emt 0:19:08]} 13. f3 {[%emt 0:07:42]} Neg8 {[%emt 0:03:50]} 14. Ng4 {[%emt 0:03:11]} Nh5 {[%emt 0:02:47]} 15. Nxh5 {[%emt 0:07:51]} Qh4+ {[%emt 0:00:01]} 16. Ke2 {[%emt 0:01:02]} Qxh5 {[%emt 0:00:08]} 17. c3 {[%emt 0:11:41]} c5 {[%emt 0:03:22]} 18. Qc2 {[%emt 0:05:50]} Ne7 {[%emt 0:04:34]} 19. Bxh6 {[%emt 0:03:39]} f5 {[%emt 0:00:02]} 20. exf5 {[%emt 0:02:52]} Nxf5 {[%emt 0:01:46]} 21. Kf2 {[%emt 0:03:16]} Qh4+ {[%emt 0:02:52]} 22. Kg1 {[%emt 0:00:17]} Nxh6 {[%emt 0:00:59]} 23. Bd5 {[%emt 0:02:42]} Qg5 {[%emt 0:08:21]} 24. Re1 {[%emt 0:01:45]} Rb8 {[%emt 0:05:31]} 25. cxd4 {[%emt 0:01:30]} cxd4 {[%emt 0:00:37]} 26. Qb3 {[%emt 0:00:44]} Bf5 {[%emt 0:04:46]} 27. Rd1 {[%emt 0:02:58]} b6 {[%emt 0:03:46]} 28. Be6 {[%emt 0:00:25]} Qe7 {[%emt 0:00:41]} 29. Bd5 {[%emt 0:00:57]} Rbc8 {[%emt 0:00:23]} 30. Kf2 {[%emt 0:00:29]} Rc5 {[%emt 0:01:18]} 31. Rc1 {[%emt 0:00:43]} Rxc1 {[%emt 0:00:26]} 32. Rxc1 {[%emt 0:00:05]} Bxg4 {[%emt 0:00:06]} 33. hxg4 {[%emt 0:00:19]} Qh4+ {[%emt 0:00:57]} 34. Ke2 {[%emt 0:00:31]} Qh2 {[%emt 0:00:12]} 35. Be4+ {[%emt 0:01:04]} Kh8 {[%emt 0:00:10]} 36. Qe6 {[%emt 0:00:30]} Qxg2+ {[%emt 0:00:12]} 37. Kd1 {[%emt 0:00:16]} Nxg4 {[%emt 0:02:40]} 38. Qxg4 {[%emt 0:03:12]} Qxg4 {[%emt 0:00:08]} 39. fxg4 {[%emt 0:00:09]} Rf1+ {[%emt 0:00:25]} 40. Kc2 {[%emt 0:00:29]} Rxc1+ {[%emt 0:00:02]} 41. Kxc1 {[%emt 0:00:08]} Kg8 {[%emt 0:00:20]} 42. Kc2 {[%emt 0:00:40]} Kf7 {[%emt 0:00:24]} 43. Bf5 {[%emt 0:00:28]} Kf6 {[%emt 0:00:25]} 44. Kb3 {[%emt 0:04:49]} 1/2-1/2

[Event "Portuguese-ch U14-20 2022"]
[Site "Fatima"]
[Date "2022.04.12"]
[Round "5.33"]
[White "Lachever, Diogo Freire"]
[Black "Camacho, Filipa Fernandes Bri"]
[Result "0-1"]
[ECO "D02"]
[WhiteElo "1182"]
[BlackElo "1467"]
[Annotator "NA"]
[PlyCount "96"]
[EventDate "2022.04.10"]
[EventType "swiss"]
[EventCountry "POR"]
[SourceTitle "playchess.com"]
[Source "ChessBase"]
[SourceQuality "1"]
[TimeControl "5400+30"]

1. d4 d5 2. Nf3 e6 3. g3 c5 4. Bg2 Nf6 5. O-O Be7 6. dxc5 Bxc5 7. c4 O-O 8. cxd5 Nxd5 9. Qc2 Qc7 10. e4 Nf6 11. Bf4 Qb6 12. Nc3 Bd7 13. Ng5 h6 14. Nf3 Nc6 15. Na4 Nb4 16. Qxc5 Bxa4 17. Qxb6 axb6 18. b3 Bb5 19. Rfd1 Rxa2 20. Rxa2 Nxa2 21. Bd6 Rc8 22. e5 Nc3 23. Re1 Nfd5 24. Nd4 Ba6 25. Rc1 Rd8 26. Bxd5 Nxd5 27. Kg2 Bd3 28. h3 g5 29. Kf3 Kg7 30. Rd1 Bg6 31. Rc1 Ra8 32. Ke2 Ra2+ 33. Ke1 Rb2 34. Ba3 Rb1 35. Rxb1 Bxb1 36. Kd2 h5 37. Nb5 Bf5 38. h4 gxh4 39. gxh4 Nf4 40. Be7 Nd3 41. Bf6+ Kg6 42. Ke3 Nc5 43. b4 Nd3 44. Be7 Nxe5 45. Nd6 Nc6 46. Bf8 Nxb4 47. Nxf5 Nd5+ 48. Ke4 Nf6+ 0-1

[Event "Portuguese-ch U14-20 2022"]
[Site "Fatima"]
[Date "2022.04.12"]
[Round "5.34"]
[White "Bento, David"]
[Black "Reis, Pedro"]
[Result "1-0"]
[ECO "C90"]
[WhiteElo "1282"]
[BlackElo "1211"]
[Annotator "NA"]
[PlyCount "65"]
[EventDate "2022.04.10"]
[EventType "swiss"]
[EventCountry "POR"]
[SourceTitle "playchess.com"]
[Source "ChessBase"]
[SourceQuality "1"]
[TimeControl "5400+30"]

1. e4 e5 2. Nf3 Nc6 3. Bb5 a6 4. Ba4 Nf6 5. d3 Be7 6. O-O b5 7. Bb3 d6 8. c3 O-O 9. Re1 Na5 10. Bc2 c5 11. d4 Nc6 12. Be3 Re8 13. Nbd2 Bf8 14. Nf1 Bb7 15. Ng3 g6 16. h4 exd4 17. cxd4 cxd4 18. Nxd4 Ne5 19. h5 Rc8 20. hxg6 fxg6 21. a4 b4 22. Bb3+ d5 23. Qe2 Kh8 24. Nf3 Nxf3+ 25. gxf3 dxe4 26. Nxe4 Nxe4 27. fxe4 Rxe4 28. Rad1 Qf6 29. Bd4 Rxd4 30. Rxd4 Qxd4 31. Qe6 Bc5 32. Re2 Qd8 33. Qe5+ 1-0

[Event "Portuguese-ch U14-20 2022"]
[Site "Fatima"]
[Date "2022.04.12"]
[Round "5.37"]
[White "Caturra, Rafael Dias"]
[Black "Mendes, Simao Pedro Garcia"]
[Result "1-0"]
[ECO "A17"]
[WhiteElo "1086"]
[BlackElo "1147"]
[Annotator "NA"]
[PlyCount "101"]
[EventDate "2022.04.10"]
[EventType "swiss"]
[EventCountry "POR"]
[SourceTitle "playchess.com"]
[Source "ChessBase"]
[SourceQuality "1"]
[TimeControl "5400+30"]

1. c4 e6 2. Nc3 Nf6 3. Nf3 d5 4. cxd5 exd5 5. d4 c6 6. Bf4 Bd6 7. Bg3 O-O 8. e3 Ne4 9. Qc2 Bf5 10. Bd3 Qe7 11. Bxd6 Qxd6 12. Nxe4 Qg6 13. Ng3 Bxd3 14. Qb3 Ba6 15. Qc3 Nd7 16. b4 Nb6 17. a4 Rfc8 18. Qb3 Bc4 19. Qb2 Nd7 20. Nd2 Bd3 21. Qb3 Nb6 22. Ra3 Bc4 23. Nxc4 Nxc4 24. Ra1 Re8 25. Qc3 h5 26. O-O h4 27. Ne2 h3 28. Nf4 Qd6 29. Nxh3 f6 30. Nf4 Kf7 31. Rfe1 Rh8 32. g3 g5 33. Ng2 Rh6 34. e4 Rah8 35. h4 gxh4 36. Nxh4 Rxh4 37. gxh4 Rxh4 38. Qg3 Rf4 39. b5 Nd2 40. Re3 Nxe4 41. Qh2 Nxf2 42. Qh7+ Kf8 43. Qh8+ Kf7 44. Qe8+ Kg7 45. Re7+ Kh6 46. Qh8+ Kg5 47. Rg7+ Kf5 48. Qh7+ Ke6 49. Re1+ Ne4 50. Qh3+ Rf5 51. Rf1 1-0

[Event "Portuguese-ch U14-20 2022"]
[Site "Fatima"]
[Date "2022.04.12"]
[Round "5.38"]
[White "Mourao, Martim Oliveira"]
[Black "Cabral, Francisco Manuel N V"]
[Result "1/2-1/2"]
[ECO "B15"]
[WhiteElo "1110"]
[BlackElo "1121"]
[Annotator "NA"]
[PlyCount "102"]
[EventDate "2022.04.10"]
[EventType "swiss"]
[EventCountry "POR"]
[SourceTitle "playchess.com"]
[Source "ChessBase"]
[SourceQuality "1"]
[TimeControl "5400+30"]

1. e4 c6 2. d4 d5 3. Nc3 dxe4 4. Nxe4 e5 5. Be3 exd4 6. Qxd4 Qxd4 7. Bxd4 Bf5 8. Bd3 Nd7 9. Nf3 Bxe4 10. Bxe4 Ndf6 11. Bd3 Bc5 12. Bc3 Nd5 13. Bd2 Nb4 14. Bxb4 Bxb4+ 15. c3 Bc5 16. O-O Nf6 17. Rad1 O-O 18. Bc4 Rad8 19. h3 Bb6 20. Rfe1 Rxd1 21. Rxd1 Re8 22. Kf1 h6 23. Re1 Rxe1+ 24. Kxe1 Nd7 25. Nd2 Kf8 26. Ke2 Ne5 27. Bb3 f6 28. Ne4 Ke7 29. f4 Nd7 30. Nd2 Bc7 31. Ke3 Nc5 32. Bc2 Bb6 33. Nc4 Bc7 34. b4 Nd7 35. a4 Nb6 36. Nxb6 Bxb6+ 37. Ke4 Bf2 38. c4 c5 39. bxc5 Bxc5 40. Kd5 Bb4 41. c5 Bd2 42. f5 Be3 43. Be4 Bf2 44. Kc4 b6 45. c6 a6 46. Kd5 Bg3 47. Bd3 a5 48. Kc4 Kd6 49. Kb5 Bf2 50. Be4 Be3 51. Ka6 Kc7 1/2-1/2